[Event "SVK ECo-C Extraliga 2018-19"]
[Site "Slovakia"]
[Date "2019.03.09"]
[Round "7.3"]
[White "Istona, Martin"]
[Black "Druska, Juraj"]
[Result "1/2-1/2"]
[ECO "B06"]
[WhiteElo "2269"]
[BlackElo "2443"]
[Annotator "ChessBase"]
[PlyCount "21"]
[EventDate "2018.11.10"]
[EventType "team-tourn"]
[EventCountry "SVK"]
[SourceTitle "playchess.com"]
[Source "ChessBase"]
[SourceQuality "1"]
[WhiteTeam "Osuske"]
[BlackTeam "Prakovce"]
[TimeControl "40/5400+30:1800+30"]

1. e4 {[%emt 0:00:00]} g6 {[%emt 0:01:50]} 2. d4 {[%emt 0:00:00]} Bg7 {[%emt 0:00:04]} 3. Nc3 {[%emt 0:00:00]} d6 {[%emt 0:00:29]} 4. Nf3 {[%emt 0:01:59]} a6 {[%emt 0:01:36]} 5. Be3 {[%emt 0:05:42]} b5 {[%emt 0:02:16]} 6. Bd3 {[%emt 0:00:47]} Bb7 {[%emt 0:00:49]} 7. a4 {[%emt 0:01:58]} b4 {[%emt 0:00:50]} 8. Ne2 {[%emt 0:08:40]} Nf6 {[%emt 0:01:24]} 9. Ng3 {[%emt 0:00:40]} O-O {[%emt 0:05:25]} 10. Qd2 {[%emt 0:03:07]} a5 {[%emt 0:08:15]} 11. Bh6 {[%emt 0:05:36]} 1/2-1/2

[Event "SVK ECo-C Extraliga 2018-19"]
[Site "Slovakia"]
[Date "2019.03.09"]
[Round "7.4"]
[White "Horvath, Csaba"]
[Black "Kostelny, Jozef"]
[Result "1-0"]
[ECO "E68"]
[WhiteElo "2510"]
[BlackElo "2212"]
[Annotator "ChessBase"]
[PlyCount "41"]
[EventDate "2018.11.10"]
[EventType "team-tourn"]
[EventCountry "SVK"]
[SourceTitle "playchess.com"]
[Source "ChessBase"]
[SourceQuality "1"]
[WhiteTeam "Podhajska"]
[BlackTeam "Zilina"]
[TimeControl "40/5400+30:1800+30"]

1. Nf3 {[%emt 0:00:00]} Nf6 {[%emt 0:00:00]} 2. g3 {[%emt 0:00:00]} g6 {[%emt 0:00:16]} 3. Bg2 {[%emt 0:00:06]} Bg7 {[%emt 0:00:04]} 4. O-O {[%emt 0:01:00]} O-O {[%emt 0:00:06]} 5. c4 {[%emt 0:01:02]} d6 {[%emt 0:00:06]} 6. d4 {[%emt 0:00:25]} Nbd7 {[%emt 0:01:22]} 7. Nc3 {[%emt 0:00:12]} e5 {[%emt 0:04:47]} 8. e4 {[%emt 0:03:07]} exd4 {[%emt 0:04:23]} 9. Nxd4 {[%emt 0:00:07]} Re8 {[%emt 0:05:21]} 10. h3 {[%emt 0:02:17]} Nc5 {[%emt 0:00:44]} 11. Re1 {[%emt 0:00:15]} a5 {[%emt 0:00:10]} 12. b3 {[%emt 0:11:56]} c6 {[%emt 0:15:22]} 13. Bf4 {[%emt 0:04:26]} Qc7 {[%emt 0:14:10]} 14. Ndb5 {[%emt 0:20:35]} cxb5 {[%emt 0:00:41]} 15. Bxd6 {[%emt 0:00:11]} Qb6 {[%emt 0:04:34]} 16. e5 {[%emt 0:00:19]} b4 {[%emt 0:22:26]} 17. Nb5 {[%emt 0:13:09]} Bd7 {[%emt 0:17:06]} 18. Nc7 {[%emt 0:06:12]} Rac8 {[%emt 0:01:07]} 19. Nxe8 {[%emt 0:00:51]} Rxe8 {[%emt 0:04:29]} 20. Qd4 {[%emt 0:04:04]} Bxh3 {[%emt 0:01:04]} 21. exf6 {[%emt 0:01:14]} 1-0

[Event "SVK ECo-C Extraliga 2018-19"]
[Site "Slovakia"]
[Date "2019.03.09"]
[Round "7.4"]
[White "Jaroslav, IM Bures"]
[Black "Krzysztof, GM Bulski"]
[Result "1/2-1/2"]
[ECO "E48"]
[WhiteElo "2391"]
[BlackElo "2538"]
[Annotator "ChessBase"]
[PlyCount "48"]
[EventDate "2018.11.10"]
[EventType "team-tourn"]
[EventCountry "SVK"]
[SourceTitle "playchess.com"]
[Source "ChessBase"]
[SourceQuality "1"]
[WhiteTeam "2"]
[BlackTeam "1"]
[TimeControl "40/5400+30:1800+30"]

1. d4 {[%emt 0:00:00]} Nf6 {[%emt 0:04:01]} 2. c4 {[%emt 0:00:04]} e6 {[%emt 0:00:15]} 3. Nc3 {[%emt 0:00:03]} Bb4 {[%emt 0:00:06]} 4. e3 {[%emt 0:00:03]} O-O {[%emt 0:00:37]} 5. Bd3 {[%emt 0:00:05]} d5 {[%emt 0:06:46]} 6. a3 {[%emt 0:01:04]} Be7 {[%emt 0:05:22]} 7. Nf3 {[%emt 0:01:50]} b6 {[%emt 0:02:32]} 8. cxd5 {[%emt 0:01:34]} exd5 {[%emt 0:02:25]} 9. Ne5 {[%emt 0:01:48]} Bb7 {[%emt 0:01:55]} 10. O-O {[%emt 0:04:18]} c5 {[%emt 0:11:55]} 11. b3 {[%emt 0:17:41]} Nc6 {[%emt 0:04:32]} 12. Nxc6 Bxc6 {[%emt 0:01:21]} 13. Qf3 {[%emt 0:07:55]} Re8 {[%emt 0:09:42]} 14. Rd1 {[%emt 0:05:18]} Qd7 {[%emt 0:04:17]} 15. Bb2 {[%emt 0:03:41]} cxd4 {[%emt 0:06:47]} 16. exd4 {[%emt 0:01:06]} Bd6 {[%emt 0:09:23]} 17. Re1 {[%emt 0:13:33]} Rad8 {[%emt 0:05:40]} 18. h3 {[%emt 0:09:25]} Qb7 {[%emt 0:02:46]} 19. b4 {[%emt 0:05:15]} Bb8 {[%emt 0:02:12]} 20. b5 {[%emt 0:05:11]} Bd7 {[%emt 0:01:22]} 21. Kf1 {[%emt 0:03:25]} Be6 {[%emt 0:03:14]} 22. g4 {[%emt 0:08:18]} h6 {[%emt 0:06:37]} 23. Bc1 {[%emt 0:02:47]} Ne4 {[%emt 0:00:43]} 24. Nxe4 dxe4 {[%emt 0:00:05]} 1/2-1/2

[Event "SVK ECo-C Extraliga 2018-19"]
[Site "Slovakia"]
[Date "2019.03.09"]
[Round "7.4"]
[White "Krak, Tomas"]
[Black "Rigo, Zsolt"]
[Result "0-1"]
[ECO "B62"]
[WhiteElo "2298"]
[BlackElo "2395"]
[Annotator "NA"]
[PlyCount "76"]
[EventDate "2018.11.10"]
[EventType "team-tourn"]
[EventCountry "SVK"]
[SourceTitle "playchess.com"]
[Source "ChessBase"]
[SourceQuality "1"]
[WhiteTeam "Snina"]
[BlackTeam "Modra"]
[TimeControl "40/5400+30:1800+30"]

1. e4 {[%emt 0:00:00]} c5 {[%emt 0:00:00]} 2. Nc3 {[%emt 0:01:55]} Nc6 {[%emt 0:08:21]} 3. Nf3 {[%emt 0:01:07]} d6 {[%emt 0:00:58]} 4. d4 {[%emt 0:00:33]} cxd4 {[%emt 0:00:06]} 5. Nxd4 {[%emt 0:00:04]} Nf6 {[%emt 0:00:06]} 6. Bg5 {[%emt 0:02:20]} e6 {[%emt 0:00:10]} 7. Bb5 {[%emt 0:00:24]} Bd7 {[%emt 0:00:48]} 8. Bxc6 {[%emt 0:00:43]} bxc6 {[%emt 0:00:26]} 9. Qf3 {[%emt 0:00:07]} h6 {[%emt 0:01:30]} 10. Bh4 {[%emt 0:01:03]} Qb6 {[%emt 0:02:43]} 11. O-O-O {[%emt 0:04:49]} Rb8 {[%emt 0:00:56]} 12. Nb3 {[%emt 0:03:42]} c5 {[%emt 0:04:10]} 13. Bxf6 {[%emt 0:02:56]} gxf6 {[%emt 0:00:13]} 14. Qxf6 {[%emt 0:00:04]} Rg8 {[%emt 0:01:11]} 15. Nd5 {[%emt 0:00:36]} exd5 {[%emt 0:01:25]} 16. exd5 {[%emt 0:00:06]} Be7 {[%emt 0:02:05]} 17. Rhe1 {[%emt 0:06:50]} Be6 {[%emt 0:02:11]} 18. Qc3 {[%emt 0:13:03]} Qb4 {[%emt 0:05:28]} 19. Qxb4 {[%emt 0:35:51]} Rxb4 {[%emt 0:00:10]} 20. dxe6 {[%emt 0:01:23]} Rxg2 {[%emt 0:00:05]} 21. Na5 {[%emt 0:05:54]} Rf4 {[%emt 0:27:57]} 22. Nc6 {[%emt 0:04:01]} Bg5 {[%emt 0:02:27]} 23. Kb1 {[%emt 0:00:34]} Rfxf2 {[%emt 0:01:53]} 24. h4 {[%emt 0:06:24]} Bxh4 {[%emt 0:07:40]} 25. Rxd6 {[%emt 0:03:11]} Rxc2 {[%emt 0:01:29]} 26. exf7+ {[%emt 0:01:32]} Kxf7 {[%emt 0:11:25]} 27. Rf1+ {[%emt 0:00:07]} Kg8 {[%emt 0:01:45]} 28. Rg1 {[%emt 0:03:17]} Rxb2+ {[%emt 0:00:56]} 29. Ka1 {[%emt 0:00:03]} Rxa2+ {[%emt 0:04:58]} 30. Kb1 {[%emt 0:00:01]} Rab2+ {[%emt 0:00:26]} 31. Ka1 {[%emt 0:00:05]} Bg5 {[%emt 0:01:07]} 32. Rxg2 {[%emt 0:00:20]} Rxg2 {[%emt 0:00:01]} 33. Ne5 {[%emt 0:02:06]} h5 {[%emt 0:03:51]} 34. Nf3 {[%emt 0:00:41]} Kg7 {[%emt 0:01:14]} 35. Rd5 {[%emt 0:00:52]} Bf6+ {[%emt 0:00:14]} 36. Kb1 {[%emt 0:00:03]} Rf2 {[%emt 0:01:29]} 37. Nd2 {[%emt 0:00:16]} h4 {[%emt 0:00:42]} 38. Ne4 {[%emt 0:00:12]} Re2 {[%emt 0:02:07]} 0-1

[Event "SVK ECo-C Extraliga 2018-19"]
[Site "Slovakia"]
[Date "2019.03.09"]
[Round "7.4"]
[White "Molnar, Erno"]
[Black "Hausner, Ivan"]
[Result "0-1"]
[ECO "B66"]
[WhiteElo "2252"]
[BlackElo "2338"]
[Annotator "NA"]
[PlyCount "63"]
[EventDate "2018.11.10"]
[EventType "team-tourn"]
[EventCountry "SVK"]
[SourceTitle "playchess.com"]
[Source "ChessBase"]
[SourceQuality "1"]
[WhiteTeam "Komarno"]
[BlackTeam "Liptovska"]
[TimeControl "40/5400+30:1800+30"]

1. e4 {[%emt 0:00:00]} c5 {[%emt 0:00:00]} 2. Nf3 {[%emt 0:00:00]} d6 {[%emt 0:00:00]} 3. d4 {[%emt 0:00:00]} cxd4 {[%emt 0:00:00]} 4. Nxd4 {[%emt 0:00:00]} Nf6 {[%emt 0:00:00]} 5. Nc3 {[%emt 0:00:00]} Nc6 {[%emt 0:00:00]} 6. Bg5 {[%emt 0:07:24]} e6 {[%emt 0:00:04]} 7. Qd2 {[%emt 0:03:37]} a6 {[%emt 0:00:08]} 8. f3 {[%emt 0:03:07]} Be7 {[%emt 0:00:11]} 9. O-O-O {[%emt 0:01:32]} Bd7 {[%emt 0:03:20]} 10. h4 {[%emt 0:04:22]} h5 {[%emt 0:00:14] B67: Sicilian: Richter-Rauzer: 7...a6 8 0-0-0 Bd7, lines without 9 f4 Be7} (10... Nxd4 11. Qxd4 Bc6 12. Kb1 O-O 13. Qd2 b5 14. Bd3 b4 15. Ne2 a5 16. Be3 Qb8 17. g4 a4 18. Nd4 Bd7 19. h5 b3 20. g5 bxa2+ 21. Ka1 Ne8 22. g6 {0-1 (43) Smirin,I (2609)-Dubov,D (2703) St Petersburg 2018}) 11. f4 {[%emt 0:12:20]} b5 {[%emt 0:00:43]} 12. f5 $146 {[%emt 0:24:21]} ({Predecessor:} 12. Qe1 b4 13. Nb1 Qb6 14. Nxc6 Bxc6 15. Nd2 Bb5 16. e5 dxe5 17. fxe5 Ng4 18. Bxe7 Kxe7 19. Qe4 Rac8 20. Re1 a5 21. Bxb5 Qxb5 22. Rhf1 Qc6 23. Qh7 Nh6 24. Qd3 Rcd8 25. Qe2 {½-½ (25) Lakshmi Sahithi,P (2134)-Kiran,M (2261) Tashkent 2007}) 12... b4 {[%emt 0:03:29]} 13. fxe6 {[%emt 0:12:35]} fxe6 {[%emt 0:01:20]} 14. Nxc6 {[%emt 0:03:27]} Bxc6 {[%emt 0:00:12]} 15. Bxf6 {[%emt 0:01:59]} Bxf6 {[%emt 0:03:12]} 16. Ne2 {[%emt 0:05:20]} Rc8 {[%emt 0:03:50]} 17. Nd4 {[%emt 0:05:05]} Qb6 {[%emt 0:02:40]} 18. Nxc6 {[%emt 0:08:54]} Rxc6 {[%emt 0:00:09]} 19. Kb1 {[%emt 0:00:08]} O-O {[%emt 0:01:31]} 20. Be2 {[%emt 0:00:45]} Qc5 {[%emt 0:00:12]} 21. g4 $19 {[%emt 0:01:51]} (21. Rh3 $17 {was called for.}) 21... Rfc8 {[%emt 0:04:35]} 22. Bd3 {[%emt 0:02:05]} hxg4 {[%emt 0:01:32]} 23. Rdg1 {[%emt 0:00:35]} Qe5 {[%emt 0:00:12]} 24. Qc1 {[%emt 0:00:05]} Rc3 {[%emt 0:03:03]} 25. Rd1 {[%emt 0:01:00]} a5 {[%emt 0:00:15]} 26. a4 {[%emt 0:01:41]} bxa3 {[%emt 0:03:29]} 27. bxc3 {[%emt 0:00:41]} Rb8+ {[%emt 0:00:56]} 28. Ka2 {[%emt 0:00:25]} Qxc3 {[%emt 0:00:22]} 29. Bb5 {[%emt 0:00:23]} Rxb5 {[%emt 0:00:07]} 30. Rd3 {[%emt 0:00:03]} Rb2+ {[%emt 0:00:33]} 31. Ka1 {[%emt 0:00:02]} Qc4 {[%emt 0:00:38]} 32. Rf1 {[%emt 0:01:19]} 0-1

[Event "SVK ECo-C Extraliga 2018-19"]
[Site "Slovakia"]
[Date "2019.03.09"]
[Round "7.5"]
[White "Marcin, GM Tazbir"]
[Black "Claudiu, FM Zetocha"]
[Result "1/2-1/2"]
[ECO "B40"]
[WhiteElo "2532"]
[BlackElo "2316"]
[Annotator "ChessBase"]
[PlyCount "82"]
[EventDate "2018.11.10"]
[EventType "team-tourn"]
[EventCountry "SVK"]
[SourceTitle "playchess.com"]
[Source "ChessBase"]
[SourceQuality "1"]
[WhiteTeam "1"]
[BlackTeam "2"]
[TimeControl "40/5400+30:1800+30"]

1. e4 {[%emt 0:00:00]} c5 {[%emt 0:00:00]} 2. Nf3 {[%emt 0:00:00]} e6 {[%emt 0:00:00]} 3. d3 {[%emt 0:00:00]} Nc6 {[%emt 0:03:03]} 4. g3 {[%emt 0:00:00]} Nge7 {[%emt 0:06:00]} 5. Bg2 {[%emt 0:00:09]} g6 {[%emt 0:00:37]} 6. Be3 {[%emt 0:05:06]} Bg7 {[%emt 0:04:26]} 7. Qc1 {[%emt 0:04:23]} h6 {[%emt 0:15:51]} 8. O-O {[%emt 0:02:25]} d6 {[%emt 0:02:58]} 9. a4 {[%emt 0:02:51]} e5 {[%emt 0:04:31]} 10. c3 {[%emt 0:08:28]} Bg4 {[%emt 0:08:30]} 11. h3 {[%emt 0:01:49]} Be6 {[%emt 0:00:40]} 12. Kh2 {[%emt 0:05:33]} Qd7 {[%emt 0:05:20]} 13. c4 {[%emt 0:07:46]} g5 {[%emt 0:09:32]} 14. Nc3 {[%emt 0:03:52]} f5 {[%emt 0:04:11]} 15. exf5 Bxf5 {[%emt 0:00:10]} 16. Ne4 {[%emt 0:02:30]} Ng6 {[%emt 0:13:08]} 17. Ng1 {[%emt 0:06:07]} O-O {[%emt 0:04:33]} 18. Qd1 {[%emt 0:04:28]} Nge7 {[%emt 0:03:57]} 19. Ne2 {[%emt 0:03:36]} Rad8 {[%emt 0:01:22]} 20. a5 {[%emt 0:06:06]} Nd4 {[%emt 0:03:32]} 21. Nxd4 {[%emt 0:04:12]} cxd4 {[%emt 0:02:57]} 22. Bd2 {[%emt 0:00:57]} d5 {[%emt 0:01:41]} 23. cxd5 Nxd5 {[%emt 0:00:56]} 24. Qb3 {[%emt 0:02:04]} Qf7 {[%emt 0:00:14]} 25. Rac1 {[%emt 0:04:07]} Kh8 {[%emt 0:00:11]} 26. a6 {[%emt 0:03:07]} bxa6 {[%emt 0:00:31]} 27. Rc6 {[%emt 0:04:24]} Ne3 {[%emt 0:00:22]} 28. Qxf7 {[%emt 0:00:53]} Nxf1+ {[%emt 0:00:04]} 29. Kg1 {[%emt 0:00:34]} Rxf7 {[%emt 0:00:05]} 30. Kxf1 {[%emt 0:00:05]} Rb7 {[%emt 0:00:32]} 31. b4 {[%emt 0:01:12]} Rb6 {[%emt 0:01:11]} 32. Rc7 {[%emt 0:00:14]} Rd7 {[%emt 0:00:20]} 33. Rc8+ {[%emt 0:00:20]} Kh7 {[%emt 0:00:06]} 34. g4 {[%emt 0:00:19]} Bg6 {[%emt 0:00:09]} 35. Ke2 {[%emt 0:01:34]} Rf7 {[%emt 0:01:31]} 36. Nc5 {[%emt 0:01:43]} Rbf6 {[%emt 0:01:07]} 37. Be1 {[%emt 0:00:04]} Rf8 {[%emt 0:02:20]} 38. Rc7 {[%emt 0:00:05]} R8f7 {[%emt 0:00:05]} 39. Rc8 {[%emt 0:00:02]} Rf8 {[%emt 0:00:15]} 40. Rc7 {[%emt 0:00:02]} R8f7 {[%emt 0:00:55]} 41. Rc8 {[%emt 0:30:08]} Rf8 {[%emt 0:10:08]} 1/2-1/2

[Event "SVK ECo-C Extraliga 2018-19"]
[Site "Slovakia"]
[Date "2019.03.09"]
[Round "7.5"]
[White "Stohl, Igor"]
[Black "Holtman, Teodor"]
[Result "1-0"]
[ECO "A04"]
[WhiteElo "2488"]
[BlackElo "2273"]
[Annotator "ChessBase"]
[PlyCount "52"]
[EventDate "2018.11.10"]
[EventType "team-tourn"]
[EventCountry "SVK"]
[SourceTitle "playchess.com"]
[Source "ChessBase"]
[SourceQuality "1"]
[WhiteTeam "Modra"]
[BlackTeam "Snina"]
[TimeControl "40/5400+30:1800+30"]

1. Nf3 {[%emt 0:00:00]} e6 {[%emt 0:00:24]} 2. c4 {[%emt 0:01:09]} f5 {[%emt 0:00:43]} 3. g3 {[%emt 0:00:51]} Nf6 {[%emt 0:02:29]} 4. Bg2 {[%emt 0:00:17]} Be7 {[%emt 0:00:49]} 5. O-O {[%emt 0:00:15]} O-O {[%emt 0:00:32]} 6. b3 {[%emt 0:00:29]} c6 {[%emt 0:03:48]} 7. Bb2 {[%emt 0:02:39]} Qc7 {[%emt 0:03:14]} 8. d3 {[%emt 0:11:09]} d6 {[%emt 0:00:42]} 9. Nbd2 {[%emt 0:00:18]} e5 {[%emt 0:04:17]} 10. c5 {[%emt 0:01:53]} Be6 {[%emt 0:07:51]} 11. Qc2 {[%emt 0:05:53]} Kh8 {[%emt 0:09:07]} 12. cxd6 {[%emt 0:12:46]} Bxd6 {[%emt 0:00:14]} 13. Nc4 {[%emt 0:00:23]} Nbd7 {[%emt 0:01:20]} 14. Nxd6 {[%emt 0:07:09]} Qxd6 {[%emt 0:00:04]} 15. e4 {[%emt 0:01:01]} Rae8 {[%emt 0:17:14]} 16. Rad1 {[%emt 0:02:13]} c5 {[%emt 0:14:58]} 17. Rfe1 {[%emt 0:14:04]} Ng4 {[%emt 0:11:26]} 18. exf5 {[%emt 0:07:25]} Bxf5 {[%emt 0:00:24]} 19. Qe2 {[%emt 0:01:35]} Qa6 {[%emt 0:05:43]} 20. Ba1 {[%emt 0:04:23]} Ngf6 {[%emt 0:11:02]} 21. Nxe5 {[%emt 0:04:51]} Nxe5 {[%emt 0:01:33]} 22. Bxe5 {[%emt 0:00:04]} Ng4 {[%emt 0:01:35]} 23. Qb2 {[%emt 0:01:50]} Qh6 {[%emt 0:01:15]} 24. h4 {[%emt 0:01:06]} Nxe5 {[%emt 0:00:41]} 25. Rxe5 {[%emt 0:00:17]} b6 {[%emt 0:00:33]} 26. d4 {[%emt 0:01:53]} Qf6 1-0

[Event "SVK ECo-C Extraliga 2018-19"]
[Site "Slovakia"]
[Date "2019.03.09"]
[Round "7.5"]
[White "Haring, Filip"]
[Black "Kukel, Imre"]
[Result "1-0"]
[ECO "B90"]
[WhiteElo "2286"]
[BlackElo "2292"]
[Annotator "NA"]
[PlyCount "55"]
[EventDate "2018.11.10"]
[EventType "team-tourn"]
[EventCountry "SVK"]
[SourceTitle "playchess.com"]
[Source "ChessBase"]
[SourceQuality "1"]
[WhiteTeam "Liptovska"]
[BlackTeam "Komarno"]
[TimeControl "40/5400+30:1800+30"]

1. e4 {[%emt 0:00:00]} c5 {[%emt 0:10:36]} 2. Nf3 {[%emt 0:00:00]} d6 {[%emt 0:02:39]} 3. d4 {[%emt 0:00:29]} cxd4 {[%emt 0:00:03]} 4. Nxd4 {[%emt 0:00:07]} Nf6 {[%emt 0:00:03]} 5. Nc3 {[%emt 0:00:10]} a6 {[%emt 0:00:17]} 6. h3 {[%emt 0:00:26]} g6 {[%emt 0:00:07]} 7. g4 {[%emt 0:02:52]} Bg7 {[%emt 0:02:10]} 8. Be3 {[%emt 0:05:34]} O-O {[%emt 0:04:53]} 9. Bg2 {[%emt 0:03:47]} Nbd7 {[%emt 0:07:44]} 10. Qe2 {[%emt 0:12:43]} e5 {[%emt 0:04:44]} 11. Nb3 $1 {[%emt 0:01:28]} b5 $14 {[%emt 0:00:47]} 12. O-O-O {[%emt 0:07:43]} b4 {[%emt 0:07:59]} 13. Na4 {[%emt 0:01:22]} Qc7 {[%emt 0:02:32]} 14. Qd2 {[%emt 0:04:17]} Qc6 {[%emt 0:02:29]} 15. Qxb4 {[%emt 0:00:35]} Rb8 {[%emt 0:01:31]} 16. Qa3 {[%emt 0:05:32]} Nc5 {[%emt 0:20:15]} 17. Naxc5 {[%emt 0:03:41]} dxc5 {[%emt 0:00:01]} 18. Qxc5 {[%emt 0:05:25]} Qa4 {[%emt 0:00:27]} 19. Qa5 {[%emt 0:00:40]} Qc4 {[%emt 0:00:17]} 20. Nc5 {[%emt 0:07:26]} h5 {[%emt 0:08:16]} 21. Bf1 {[%emt 0:03:55]} Qb4 {[%emt 0:00:05]} 22. Qxb4 {[%emt 0:00:07]} Rxb4 {[%emt 0:00:04]} 23. f3 {[%emt 0:00:37]} h4 {[%emt 0:01:01]} 24. a3 {[%emt 0:01:54]} Rb6 {[%emt 0:00:13]} 25. b4 {[%emt 0:02:16]} Nh7 {[%emt 0:00:12]} 26. Nd7 {[%emt 0:03:31]} Bxd7 {[%emt 0:00:06]} 27. Bxb6 {[%emt 0:00:07]} Bc6 {[%emt 0:00:12]} 28. Bxa6 {[%emt 0:01:47]} 1-0

[Event "SVK ECo-C Extraliga 2018-19"]
[Site "Slovakia"]
[Date "2019.03.09"]
[Round "7.5"]
[White "Bury, Rastislav"]
[Black "Jacko, Vladimir"]
[Result "1/2-1/2"]
[ECO "E68"]
[WhiteElo "2137"]
[BlackElo "2317"]
[Annotator "NA"]
[PlyCount "104"]
[EventDate "2018.11.10"]
[EventType "team-tourn"]
[EventCountry "SVK"]
[SourceTitle "playchess.com"]
[Source "ChessBase"]
[SourceQuality "1"]
[WhiteTeam "Osuske"]
[BlackTeam "Prakovce"]
[TimeControl "40/5400+30:1800+30"]

1. d4 {[%emt 0:00:00]} Nf6 {[%emt 0:01:04]} 2. Nf3 {[%emt 0:00:38]} g6 {[%emt 0:00:20]} 3. g3 {[%emt 0:01:17]} Bg7 {[%emt 0:00:36]} 4. Bg2 {[%emt 0:00:03]} O-O {[%emt 0:00:07]} 5. O-O {[%emt 0:00:03]} d6 {[%emt 0:00:08]} 6. c4 {[%emt 0:00:04]} Nbd7 {[%emt 0:00:18]} 7. Nc3 {[%emt 0:00:05]} e5 {[%emt 0:01:14]} 8. e4 {[%emt 0:02:38]} exd4 {[%emt 0:00:37]} 9. Nxd4 {[%emt 0:00:07]} Re8 {[%emt 0:00:46]} 10. h3 {[%emt 0:01:26]} a6 {[%emt 0:00:05]} 11. Re1 {[%emt 0:01:21]} Rb8 {[%emt 0:00:33]} 12. a4 {[%emt 0:04:22]} Ne5 {[%emt 0:06:50]} 13. Qe2 {[%emt 0:16:56]} c5 {[%emt 0:05:24]} 14. Nf3 {[%emt 0:04:19]} Nc6 {[%emt 0:01:55]} (14... Nfd7 $11) 15. Bf4 {[%emt 0:02:23]} Nh5 {[%emt 0:30:23]} 16. Bg5 {[%emt 0:07:16]} Nd4 {[%emt 0:03:54] [#]} 17. Qd2 $16 {[%emt 0:08:01]} Qa5 {[%emt 0:13:12]} 18. g4 {[%emt 0:05:41]} Nf6 {[%emt 0:03:19]} 19. Rad1 {[%emt 0:10:53]} Nd7 {[%emt 0:13:26]} 20. Nd5 {[%emt 0:04:35]} Qxd2 {[%emt 0:00:59]} 21. Rxd2 {[%emt 0:00:23]} Nc6 {[%emt 0:05:56]} 22. Nc7 {[%emt 0:00:48]} Rf8 {[%emt 0:00:33]} 23. Nd5 {[%emt 0:04:59]} f6 {[%emt 0:03:04]} 24. Bf4 {[%emt 0:01:46]} Nde5 {[%emt 0:00:12]} 25. Nb6 {[%emt 0:03:34]} g5 {[%emt 0:02:30]} 26. Bg3 {[%emt 0:01:37]} Rd8 {[%emt 0:00:04]} 27. Red1 {[%emt 0:02:01]} Bf8 {[%emt 0:00:59]} 28. Bxe5 {[%emt 0:10:04]} Nxe5 {[%emt 0:00:33]} 29. Nxe5 {[%emt 0:02:16]} fxe5 {[%emt 0:00:03]} 30. Nxc8 {[%emt 0:01:20]} Rbxc8 {[%emt 0:02:02]} 31. Bf1 {[%emt 0:00:13]} Rc6 {[%emt 0:00:38]} 32. b3 {[%emt 0:00:51]} Rd7 {[%emt 0:00:17]} 33. Kg2 {[%emt 0:00:33]} Rf7 {[%emt 0:01:21]} 34. f3 {[%emt 0:00:14]} Be7 {[%emt 0:00:24]} 35. Be2 {[%emt 0:00:14]} Rf6 {[%emt 0:00:59]} 36. Rb2 {[%emt 0:00:24]} Rb6 {[%emt 0:01:00]} 37. Rdb1 {[%emt 0:02:06]} Rb4 {[%emt 0:00:18]} 38. Rc2 {[%emt 0:00:20]} Bd8 {[%emt 0:00:15]} 39. Bd3 {[%emt 0:00:21]} Ba5 {[%emt 0:00:13]} 40. Be2 {[%emt 0:00:09]} Rb6 {[%emt 0:01:46]} 41. Kg3 {[%emt 0:30:14]} Rh6 {[%emt 0:30:45]} 42. Bf1 {[%emt 0:00:17]} Kf7 {[%emt 0:01:01]} 43. Kf2 {[%emt 0:00:34]} Rc6 {[%emt 0:00:16]} 44. Ke3 {[%emt 0:00:24]} Rc8 {[%emt 0:00:43]} 45. Kf2 {[%emt 0:00:38]} Ke7 {[%emt 0:00:00]} 46. Ke3 {[%emt 0:00:00]} Rf8 {[%emt 0:00:00]} 47. Bg2 {[%emt 0:00:00]} Rhf6 {[%emt 0:00:00]} 48. Rf1 {[%emt 0:00:00]} Bb4 {[%emt 0:00:00]} 49. Ra1 {[%emt 0:00:00]} h5 {[%emt 0:00:00]} 50. Rcc1 {[%emt 0:00:00]} Rh8 {[%emt 0:00:00]} 51. gxh5 {[%emt 0:00:00]} Rxh5 {[%emt 0:00:00]} 52. Rc2 {[%emt 0:00:00]} Rh4 {[%emt 0:00:00]} 1/2-1/2

[Event "SVK ECo-C Extraliga 2018-19"]
[Site "Slovakia"]
[Date "2019.03.09"]
[Round "7.5"]
[White "Gajdosik, Andrej"]
[Black "Likavsky, Tomas"]
[Result "1/2-1/2"]
[ECO "A41"]
[WhiteElo "2010"]
[BlackElo "2423"]
[Annotator "NA"]
[PlyCount "81"]
[EventDate "2018.11.10"]
[EventType "team-tourn"]
[EventCountry "SVK"]
[SourceTitle "playchess.com"]
[Source "ChessBase"]
[SourceQuality "1"]
[WhiteTeam "Zilina"]
[BlackTeam "Podhajska"]
[TimeControl "40/5400+30:1800+30"]

1. d4 {[%emt 0:00:00]} d6 {[%emt 0:00:00]} 2. Nf3 {[%emt 0:00:41]} g6 {[%emt 0:00:10]} 3. c4 {[%emt 0:00:57]} Bg7 {[%emt 0:00:09]} 4. Nc3 {[%emt 0:00:05]} Bg4 {[%emt 0:01:54]} 5. e3 {[%emt 0:09:29]} Nf6 {[%emt 0:07:32]} 6. Be2 {[%emt 0:01:17]} O-O {[%emt 0:00:15]} 7. O-O {[%emt 0:01:50]} c5 {[%emt 0:01:10]} 8. b3 {[%emt 0:04:32]} Nc6 {[%emt 0:03:00]} 9. Bb2 {[%emt 0:02:41]} cxd4 {[%emt 0:06:15]} 10. Nxd4 {[%emt 0:03:01]} Bxe2 {[%emt 0:01:45]} 11. Ncxe2 {[%emt 0:04:50]} a6 {[%emt 0:07:26]} 12. a3 {[%emt 0:06:20]} Rc8 {[%emt 0:05:47]} 13. Rc1 {[%emt 0:01:45]} Qb6 {[%emt 0:03:01]} 14. Nxc6 {[%emt 0:06:33]} bxc6 {[%emt 0:04:42]} 15. b4 {[%emt 0:04:40]} c5 {[%emt 0:05:01]} 16. Qa4 {[%emt 0:01:21]} Rc7 {[%emt 0:05:08]} 17. Nf4 {[%emt 0:04:33]} e6 {[%emt 0:12:12]} 18. Nd3 {[%emt 0:04:55]} Nd7 {[%emt 0:07:27]} 19. Rb1 {[%emt 0:08:55]} cxb4 {[%emt 0:06:01]} 20. Bxg7 {[%emt 0:01:16]} Kxg7 {[%emt 0:00:02]} 21. axb4 {[%emt 0:04:08]} Qa7 {[%emt 0:02:30]} 22. Ra1 {[%emt 0:09:34]} Rxc4 {[%emt 0:04:06]} 23. Qxa6 {[%emt 0:01:36]} Qc7 {[%emt 0:00:16]} 24. Rac1 {[%emt 0:02:14]} d5 {[%emt 0:01:31]} 25. Rxc4 {[%emt 0:09:20]} Qxc4 {[%emt 0:00:26]} 26. Qa3 {[%emt 0:00:28]} Qb5 {[%emt 0:02:46]} 27. Nc5 {[%emt 0:02:47]} Nb6 {[%emt 0:01:56]} 28. Qa7 {[%emt 0:01:08]} Qc6 {[%emt 0:01:52]} 29. Qa1+ {[%emt 0:01:20]} Kg8 {[%emt 0:00:07]} 30. h3 {[%emt 0:00:11]} Nc4 {[%emt 0:01:27]} 31. Nd3 {[%emt 0:00:39]} Ra8 {[%emt 0:00:18]} 32. Qd4 {[%emt 0:00:53]} Ra2 {[%emt 0:00:57]} 33. Ne5 {[%emt 0:00:54]} Nxe5 {[%emt 0:05:58]} 34. Qxe5 {[%emt 0:00:03]} h5 {[%emt 0:00:27]} 35. Ra1 {[%emt 0:01:15]} Rxa1+ {[%emt 0:01:40]} 36. Qxa1 {[%emt 0:00:04]} Kf8 {[%emt 0:00:34]} 37. Qa7 {[%emt 0:00:45]} Qb5 {[%emt 0:01:23]} 38. Qa5 {[%emt 0:00:39]} Qb7 {[%emt 0:00:33]} 39. Qd8+ {[%emt 0:00:15]} Kg7 {[%emt 0:00:04]} 40. Qd6 {[%emt 0:00:12]} Qb5 {[%emt 0:00:37]} 41. h4 {[%emt 0:07:06]} 1/2-1/2